bitfinex-derivatives/quotes_ETHF0:USTF0_20251025
["timestamp","ask_amount","ask_price","bid_price","bid_amount"]
[1761356432042,1.2772,3927.9,3927.8,0.81]
[1761356434846,0.819,3927.9,3927.8,0.81]
[1761356435049,1.27717,3928.2,3928.1,0.81]
[1761356435550,0.819,3928.2,3928.1,0.81]
[1761356452659,0.819,3928.2,3928.1,0.5776]
[1761356452859,0.819,3928.2,3927.5,0.128]
[1761356452860,0.45821,3927.8,3927.7,0.3512]
[1761356453064,0.90251,3927.8,3927.7,0.5828]
[1761356453467,1.24551,3927.8,3927.7,0.5828]
[1761356454268,1.24551,3927.8,3927.7,0.3512]
[1761356454470,2.16040786,3927.8,3927.7,0.3512]
[1761356454965,0.91489786,3927.8,3927.7,0.8117]
[1761356455166,0.91489786,3927.9,3927.8,1.26991]
[1761356455367,0.91489786,3927.9,3927.8,4.47771]
[1761356455565,1.13129786,3927.9,3927.8,4.47771]
[1761356458864,0.91489786,3927.9,3927.8,4.47771]
[1761356461480,1.68239786,3927.9,3927.8,4.0195]
[1761356461677,0.7675,3927.9,3927.8,4.0195]
[1761356461973,0.4358,3927.9,3927.8,4.0195]
[1761356462171,0.7675,3927.9,3927.8,4.0195]
[1761356463074,0.4358,3927.9,3927.8,4.0195]
[1761356463773,0.2216,3927.9,3927.8,4.0195]
[1761356463977,1.59626761,3928.1,3928.0,0.9091]
[1761356464574,1.13749646,3928.1,3928.0,0.9091]
[1761356464774,1.46919646,3928.1,3928.0,0.9091]
[1761356465575,1.68339646,3928.1,3928.0,0.9091]
[1761356471174,1.68339646,3928.1,3928.0,0.5499]
[1761356472884,0.91589646,3928.1,3928.0,0.9139]
[1761356477381,1.14809646,3928.1,3928.0,0.9139]
[1761356478583,1.69479646,3928.1,3928.0,0.5499]
[1761356478787,0.7789,3928.1,3928.0,0.5499]
[1761356479186,0.7789,3928.1,3928.0,0.9139]
[1761356482293,2.15356761,3928.1,3928.0,0.9139]
[1761356484496,0.7789,3928.1,3928.0,0.9139]
[1761356490094,0.2322,3928.1,3928.0,0.9139]
[1761356490295,5.0306887,3928.6,3928.0,0.9139]
[1761356490296,0.91643158,3928.4,3928.2,1.04216]
[1761356490600,1.37457158,3928.4,3928.3,0.8175]
[1761356490796,0.91643158,3928.4,3928.3,0.8175]
[1761356491891,1.14863158,3928.4,3928.3,0.8175]
[1761356492292,1.46983158,3928.4,3928.3,0.8175]
[1761356492492,1.69533158,3928.4,3928.3,0.8175]
[1761356492693,1.69533158,3928.4,3927.9,0.45819]
[1761356492694,0.3212,3928.3,3928.1,0.3502]
[1761356492896,1.69485162,3928.2,3928.1,0.3502]
[1761356493298,1.69485162,3928.2,3928.1,0.584]
[1761356494198,0.7789,3928.2,3928.1,0.584]
[1761356494599,2.15356761,3928.2,3928.1,0.584]
[1761356494798,2.15356761,3928.2,3928.1,0.8175]
[1761356496303,0.4577,3928.2,3928.1,0.8175]
[1761356499601,0.809,3928.2,3928.1,0.8175]
[1761356506608,0.809,3928.2,3928.1,0.3305]
[1761356506609,0.91586,3928.2,3928.1,0.3305]
[1761356506916,0.91586,3928.2,3928.1,0.5511]
[1761356507211,1.26716,3928.2,3928.1,0.5511]
[1761356508914,1.26001,3927.8,3927.7,3.4284]
[1761356509308,0.45823,3927.6,3927.5,2.702]
[1761356509511,1.26003,3927.6,3927.5,2.9226]
[1761356509908,1.26003,3927.6,3927.5,2.702]
[1761356510108,1.26003,3927.6,3927.5,3.0325]
[1761356510308,1.26003,3927.6,3927.5,3.2531]
[1761356513316,1.26003,3927.6,3927.5,0.5511]
[1761356515816,0.8018,3927.0,3926.9,3.4284]
[1761356516315,0.8018,3927.0,3926.9,3.7589]
[1761356517016,0.8018,3927.0,3926.9,3.9871]
[1761356517918,0.4505,3927.0,3926.9,3.9871]
[1761356518312,0.7949,3927.0,3926.9,3.9871]
[1761356518822,0.7949,3927.0,3926.9,0.7793]
[1761356524222,0.7949,3927.0,3926.5,3.80580791]
[1761356524223,0.3444,3926.9,3926.6,0.5477]
[1761356524424,0.8058,3926.7,3926.6,0.2186]
[1761356524732,0.8058,3926.6,3926.5,0.00235791]
[1761356525025,0.8058,3926.6,3926.5,0.33145791]
[1761356525216,0.8058,3926.6,3926.5,0.00235791]
[1761356526134,0.8058,3926.6,3926.5,0.55005791]
[1761356526325,0.2325,3927.1,3927.0,0.8911]
[1761356526626,3.4403,3927.2,3927.1,0.7603]
[1761356526931,4.0136,3927.2,3927.1,0.7603]
[1761356530830,0.8058,3927.2,3927.1,0.7603]
[1761356544529,1.7212871,3927.2,3927.1,0.7603]
[1761356545638,0.2325,3927.2,3927.1,0.7603]
[1761356546635,1.3737571,3927.3,3927.2,0.7603]
[1761356546938,1.5932571,3927.3,3927.2,0.7603]
[1761356547134,0.99779,3927.1,3927.0,0.5442]
[1761356547335,1.21589,3927.1,3927.0,0.5442]
[1761356548238,2.13174248,3927.1,3927.0,0.5442]
[1761356549142,2.13174248,3927.1,3927.0,0.7603]
[1761356554046,1.67345248,3927.1,3927.0,0.7603]
[1761356554246,0.7576,3927.1,3927.0,0.889]
[1761356556154,1.67345248,3927.1,3927.0,0.889]
[1761356557545,1.13535248,3927.1,3927.0,0.889]
[1761356558739,0.2195,3927.1,3927.0,0.889]
[1761356559648,0.91585248,3927.2,3927.1,1.24859]
[1761356561244,0.91585248,3927.3,3927.1,1.24859]
[1761356561549,0.91585248,3927.3,3927.2,0.7903]
[1761356563150,0.91585248,3927.4,3927.3,1.24857]
[1761356563541,9.2276,3927.5,3927.4,0.5593]
[1761356563742,9.2276,3927.5,3927.4,0.7903]
[1761356564346,9.004,3927.5,3927.4,0.7903]
[1761356567250,9.2276,3927.5,3927.4,0.7903]
[1761356567551,9.5645,3927.5,3927.4,0.7903]
[1761356570350,9.7948,3927.5,3927.4,0.7903]
[1761356571544,9.4579,3927.5,3927.4,0.7903]
[1761356572256,9.2276,3927.5,3927.4,0.7903]
[1761356572656,9.5645,3927.5,3927.4,0.7903]
[1761356572848,9.7948,3927.5,3927.4,0.7903]
[1761356591670,0.7827,3927.4,3927.3,1.01687]
[1761356592266,0.7827,3927.4,3927.3,1.23297]
[1761356595174,9.004,3927.5,3927.4,0.3287]
[1761356595675,9.231,3927.5,3927.4,0.7747]
[1761356596769,9.5532,3927.5,3927.4,0.7747]
[1761356596974,9.231,3927.5,3927.4,0.7747]
[1761356598471,9.7867,3927.5,3927.4,0.7747]
[1761356598672,0.5492,3927.7,3927.6,0.7747]
[1761356598867,0.5492,3927.7,3927.6,3.9825]
[1761356599770,0.227,3927.7,3927.6,3.9825]
[1761356601572,9.3142,3927.9,3927.6,3.9825]
[1761356601573,8.992,3927.9,3927.8,0.7747]
[1761356601877,9.219,3927.9,3927.8,0.7747]
[1761356603265,0.227,3927.9,3927.8,0.7747]
[1761356605779,0.7827,3927.9,3927.8,0.7747]
[1761356610483,0.7827,3927.9,3927.8,3.9825]
[1761356615487,0.4605,3927.9,3927.8,3.9825]
[1761356616481,0.227,3927.9,3927.8,3.9825]
[1761356616978,9.219,3928.3,3927.8,3.4239]
[1761356617186,9.5412,3928.3,3928.2,1.23286]
[1761356617681,9.7747,3928.3,3928.2,1.23286]
[1761356619489,0.4605,3928.3,3928.2,1.23286]
[1761356619688,0.8021,3928.3,3928.2,1.23286]
[1761356626992,1.36778,3928.0,3927.9,2.702]
[1761356627490,2.28295462,3928.0,3927.9,2.702]
[1761356627992,1.25003,3927.6,3927.5,0.3486]
[1761356630787,1.25003,3927.6,3927.5,0.5787]
[1761356630989,0.7918,3927.6,3927.5,0.801]
[1761356631208,0.4502,3927.6,3927.5,0.9407]
[1761356631698,0.7918,3927.6,3927.5,0.9407]
[1761356640898,0.2301,3927.6,3927.5,0.9407]
[1761356641101,0.5563,3927.9,3927.8,0.79]
[1761356641398,0.7738,3927.9,3927.8,0.79]
[1761356643500,0.7738,3927.9,3927.8,0.578]
[1761356643902,0.7738,3927.9,3927.8,0.3426]
[1761356646303,1.23201,3927.8,3927.7,0.80082]
[1761356646602,1.23201,3927.8,3927.7,0.3426]
[1761356647004,0.7738,3927.5,3927.4,0.578]
[1761356652700,0.7738,3927.5,3927.4,0.3426]
[1761356653306,0.7738,3927.5,3927.4,0.5693]
[1761356654009,1.22919,3927.2,3927.1,0.5532]
[1761356654204,1.22919,3927.2,3927.1,0.3265]
[1761356654601,0.3325,3927.1,3927.0,3.0285]
[1761356654805,0.7709,3927.1,3927.0,0.3265]
[1761356655710,0.7709,3927.1,3927.0,0.5532]
[1761356656211,0.7709,3927.1,3927.0,0.9253]
[1761356656810,0.4384,3927.1,3927.0,0.9253]
[1761356661513,1.59866591,3927.5,3927.4,0.4622]
[1761356661714,1.59866591,3927.5,3927.4,0.7887]
[1761356662013,2.14416591,3927.5,3927.4,0.7887]
[1761356664915,0.2254,3927.5,3927.4,0.7887]
[1761356665621,0.5579,3927.5,3927.4,0.7887]
[1761356667812,0.7709,3927.5,3927.4,0.7887]
[1761356670811,0.2254,3927.5,3927.4,0.7887]
[1761356671013,8.984,3927.7,3927.6,0.7887]
[1761356671218,9.2094,3927.7,3927.6,0.7887]
[1761356671515,9.7549,3927.7,3927.6,0.7887]
[1761356679619,0.45823,3927.6,3927.3,3.2078]
[1761356679823,0.7623,3927.4,3927.3,0.3397]
[1761356681220,0.7623,3927.4,3927.3,0.5527]
[1761356690725,0.7623,3927.4,3927.3,0.3397]
[1761356690922,0.4392,3927.2,3927.1,0.45828]
[1761356691237,0.7623,3927.2,3927.1,0.79798]
[1761356691531,0.7623,3927.2,3927.1,1.01098]
[1761356693031,0.7623,3927.2,3927.1,1.24088]
[1761356700136,0.2183,3927.2,3927.1,1.24088]
[1761356700342,0.2142,3927.4,3927.3,1.26107]
[1761356700844,1.12921591,3927.6,3927.5,0.9301]
[1761356701144,0.2142,3927.6,3927.5,0.9301]
[1761356701441,1.45641591,3927.6,3927.5,0.9301]
[1761356701642,1.67081591,3927.6,3927.5,0.9301]
[1761356703439,1.12921591,3927.6,3927.5,0.9301]
[1761356703645,9.89901591,3927.7,3927.6,1.26103]
[1761356704038,10.11321591,3927.7,3927.6,1.26103]
[1761356704239,9.1982,3927.7,3927.6,1.26103]
[1761356704640,9.5254,3927.7,3927.6,1.26103]
[1761356705943,10.44041591,3927.7,3927.6,1.26103]
[1761356706137,10.65481591,3927.7,3927.6,1.26103]
[1761356706844,9.7398,3927.7,3927.6,1.26103]
[1761356707940,9.7398,3927.7,3927.6,0.8028]
[1761356719156,9.7398,3927.7,3927.6,0.5743]
[1761356719658,0.69033,3927.6,3927.4,0.3498]
[1761356719957,0.4548,3927.5,3927.4,0.3498]
[1761356720153,0.783,3927.5,3927.4,0.3498]
[1761356720648,0.783,3927.5,3927.4,0.5675]
[1761356729446,0.783,3927.5,3927.4,0.3498]
[1761356729754,1.24125,3927.4,3927.3,1.03474873]
[1761356730056,1.24125,3927.4,3927.3,1.25244873]
[1761356730755,0.783,3927.4,3927.3,1.25244873]
[1761356734762,0.783,3927.4,3927.3,0.5675]
[1761356735651,0.783,3927.4,3927.3,0.7982]
[1761356735652,0.4548,3927.4,3927.3,0.7982]
[1761356742168,0.7747,3927.4,3927.3,0.7982]
[1761356743169,0.2227,3927.4,3927.3,0.7982]
[1761356744873,0.2227,3927.4,3927.3,1.48314873]
[1761356745268,10.65751591,3927.7,3927.5,0.45824]
[1761356745573,10.65751591,3927.7,3927.5,0.58714]
[1761356745880,10.65751591,3927.7,3927.6,0.7715]
[1761356750279,9.89901591,3927.7,3927.6,0.7715]
[1761356750483,8.984,3927.7,3927.6,0.7715]
[1761356751380,8.984,3927.7,3927.6,1.45640214]
[1761356752283,0.2157,3928.0,3927.9,1.2297]
[1761356752587,0.5356,3928.0,3927.9,1.2297]
[1761356752979,0.7585,3928.0,3927.9,1.2297]
[1761356755685,0.4386,3928.0,3927.9,1.2297]
[1761356758084,0.2235,3928.2,3927.7,0.68490214]
[1761356758290,0.2235,3928.2,3928.1,0.8079]
[1761356758690,0.7984,3928.2,3928.1,0.8079]
[1761356759193,1.25656,3928.2,3928.1,0.8079]
[1761356759790,1.25656,3928.2,3928.1,0.5731]
[1761356763282,0.7984,3928.2,3928.1,0.5731]
[1761356766798,0.7984,3928.2,3928.1,0.8079]
[1761356778890,0.4582,3927.9,3927.7,0.3368]
[1761356779101,0.7793,3927.8,3927.7,0.7865]
[1761356779402,0.7793,3927.8,3927.7,1.47140214]
[1761356779709,0.2268,3927.8,3927.7,1.47140214]
[1761356781805,0.5542,3927.8,3927.7,1.47140214]
[1761356785002,0.5542,3927.8,3927.7,0.7865]
[1761356785303,0.2268,3927.8,3927.7,0.7865]
[1761356787399,8.967,3927.9,3927.8,0.79501]
[1761356787595,8.967,3927.9,3927.8,1.24471]
[1761356787808,9.1938,3927.9,3927.8,1.24471]
[1761356789507,9.5212,3927.9,3927.8,1.24471]
[1761356793612,9.7463,3927.9,3927.8,1.24471]
[1761356811530,9.7463,3927.9,3927.8,1.70414804]
[1761356820133,9.7463,3927.9,3927.8,1.93384804]
[1761356820340,9.7463,3927.9,3927.8,1.24851]
[1761356820732,1.36701591,3928.3,3928.2,0.3258]
[1761356820935,1.36701591,3928.3,3928.2,0.7883]
[1761356820936,0.8049,3928.3,3928.2,0.7883]
[1761356822127,0.2268,3928.3,3928.2,0.7883]
[1761356822538,0.8049,3928.3,3928.2,0.7883]
[1761356825040,0.8049,3928.3,3928.2,3.4903]
[1761356831044,0.2268,3928.3,3928.2,3.4903]
[1761356833039,0.5521,3928.3,3928.2,3.4903]
[1761356833440,0.2268,3928.3,3928.2,3.4903]
[1761356834939,0.2268,3928.3,3928.2,6.6981]
[1761356842852,0.5425,3928.5,3928.4,0.7808]
[1761356843353,0.7641,3928.5,3928.4,0.7808]
[1761356848553,0.00283278,3929.0,3928.9,0.90608]
[1761356848761,1.8228887,3929.8,3928.9,0.90608]
[1761356848762,1.13221591,3930.1,3930.0,0.9131]
[1761356849053,0.2172,3930.1,3930.0,0.9131]
[1761356849755,0.21932449,3930.1,3930.0,0.91500298]
[1761356853361,0.76622449,3930.1,3930.0,0.33470298]
[1761356853555,0.76622449,3930.1,3930.0,0.54860298]
[1761356853749,0.76622449,3930.1,3930.0,0.78270298]
[1761356853949,0.76622449,3930.1,3930.0,0.91500298]
[1761356854555,1.22416449,3930.1,3930.0,0.91500298]
[1761356854756,0.76622449,3930.1,3930.0,0.91500298]
[1761356856963,0.76622449,3930.1,3930.0,0.78270298]
[1761356857254,0.76622449,3930.1,3930.0,0.54860298]
[1761356858262,0.76622449,3930.1,3930.0,0.78270298]
[1761356858653,0.76622449,3930.1,3930.0,0.91870298]
[1761356873582,0.76622449,3930.1,3930.0,0.78270298]
[1761356874188,0.76622449,3930.1,3930.0,0.91870298]
[1761356880391,1.6812404,3930.1,3930.0,0.91870298]
[1761356880691,0.76622449,3930.1,3930.0,0.91870298]
[1761356881192,1.6812404,3930.1,3930.0,0.91870298]
[1761356883292,0.3359,3929.7,3929.6,0.67824732]
[1761356883595,1.24105,3929.2,3929.1,0.3323]
[1761356883795,10.19305,3929.2,3929.1,0.5619]
[1761356884296,10.19305,3929.2,3929.1,0.56423747]
[1761356887095,10.19305,3929.2,3928.7,0.3323]
[1761356887096,0.45809,3928.8,3928.7,0.3323]
[1761356887303,0.45809,3928.8,3928.5,0.5619]
[1761356887304,0.4471,3928.6,3928.5,0.5619]
[1761356887497,0.4471,3928.6,3928.1,0.45817]
[1761356887498,1.02807,3928.2,3928.1,0.5481]
[1761356887799,9.735,3928.2,3928.1,0.7777]
[1761356888301,9.735,3928.2,3928.1,0.33554197]
[1761356892199,9.3991,3928.2,3928.1,0.77744197]
[1761356892399,3.2078,3928.9,3928.7,0.7782]
[1761356892400,0.2211,3928.8,3928.7,0.7782]
[1761356892795,0.8005,3928.8,3928.7,0.7782]
[1761356896104,9.41107,3929.0,3928.8,0.79439]
[1761356896301,10.21157,3929.0,3928.9,0.7782]
[1761356902614,10.21157,3929.0,3928.9,0.5488]
[1761356902814,0.69041,3928.7,3928.6,0.5488]
[1761356903003,9.86451,3928.7,3928.6,0.5488]
[1761356903406,10.21161,3928.7,3928.6,0.7782]
[1761356905610,10.21161,3928.7,3928.2,0.45815]
[1761356905611,0.45814,3928.4,3928.2,0.45815]
[1761356905814,0.91154,3928.4,3928.3,0.5488]
[1761356906415,1.25864,3928.4,3928.3,0.7782]
[1761356906711,0.91154,3928.4,3928.3,0.7782]
[1761356907214,1.25864,3928.4,3928.3,0.7782]
[1761356908316,1.25864,3928.4,3928.3,0.5488]
[1761356908817,1.25864,3928.4,3928.3,0.7782]
[1761356914318,1.25864,3928.4,3928.3,0.3363]
[1761356914513,1.25864,3928.4,3928.1,0.00324197]
[1761356914514,1.25866,3928.2,3928.1,0.00324197]
[1761356914914,2.1751058,3928.2,3928.1,0.21574197]
[1761356915117,1.25866,3928.2,3928.1,0.55204197]
[1761356915921,1.25866,3928.2,3928.1,0.78144197]
[1761356920128,2.17378062,3928.2,3928.1,0.78144197]
[1761356922228,1.71562062,3928.2,3928.1,0.78144197]
[1761356922429,0.8005,3928.2,3928.1,0.78144197]
[1761356923427,0.2211,3928.2,3928.1,0.78144197]
[1761356923827,0.5452,3928.2,3928.1,0.78144197]
[1761356924022,0.91512062,3928.3,3928.2,0.45816]
[1761356924328,8.887,3928.3,3928.2,4.46236]
[1761356924531,9.1017,3928.3,3928.2,4.46236]
[1761356924935,9.4258,3928.3,3928.2,4.46236]
[1761356925438,9.4258,3928.3,3928.2,4.0042]
[1761356925639,9.6513,3928.3,3928.2,4.0042]
[1761356926732,9.3272,3928.3,3928.2,4.0042]
[1761356927437,8.887,3928.3,3928.2,4.0042]
[1761356928230,1.81342062,3928.8,3928.7,0.5784]
[1761356928535,10.1754,3928.8,3928.7,0.7964]
[1761356929126,9.8513,3928.8,3928.7,0.7964]
[1761356929937,10.1754,3928.8,3928.7,0.7964]
[1761356930938,9.3932,3928.8,3928.7,0.7964]
[1761356932046,8.953,3928.8,3928.7,0.7964]
[1761356932351,9.1677,3929.2,3929.1,0.7964]
[1761356932645,9.7173,3929.2,3929.1,0.7964]
[1761356937555,9.3932,3929.2,3929.1,0.7964]
[1761356937850,8.953,3929.2,3929.1,0.7964]
[1761356938354,8.953,3929.2,3929.1,4.0042]
[1761356939053,0.448,3929.5,3929.4,0.89011]
[1761356939248,0.7844,3929.5,3929.4,0.89011]
[1761356939557,0.7844,3929.5,3929.4,1.23621]
[1761356940158,0.2337,3929.5,3929.4,1.23621]
[1761356940359,8.952,3929.6,3929.5,0.913]
[1761356941050,8.952,3929.6,3929.5,4.1208]
[1761356941252,0.5701,3929.8,3929.7,0.3461]
[1761356941455,0.2337,3929.8,3929.7,0.7782]
[1761356941645,9.5211,3930.0,3929.9,0.4321]
[1761356941852,9.7354,3930.0,3929.9,0.7782]
[1761356942754,9.399,3930.0,3929.9,0.7782]
[1761356943860,8.951,3930.0,3929.9,0.7782]
[1761356944157,0.00212449,3930.1,3930.0,1.37095]
[1761356946255,0.23582449,3930.1,3930.0,1.37095]
[1761356949760,0.2337,3930.9,3930.8,1.23726]
[1761356950860,0.23642243,3930.9,3930.8,1.23726]
[1761356951661,0.00272243,3930.9,3930.8,1.23726]
[1761356953449,0.2337,3931.6,3931.5,0.9176]
[1761356954457,0.81579936,3931.6,3931.5,0.56714221]
[1761356954662,0.81579936,3931.6,3931.5,0.33314221]
[1761356954857,0.81579936,3931.6,3931.5,0.56714221]
[1761356957063,0.81579936,3931.6,3931.5,0.92074221]
[1761356959864,0.81579936,3931.6,3931.5,0.00314221]
[1761356960567,0.81579936,3931.6,3931.5,0.56714221]
[1761356963270,0.81579936,3931.6,3931.5,0.00314221]
[1761356963769,0.81579936,3931.6,3931.5,0.33314221]
[1761356964169,0.81579936,3931.6,3931.5,0.56714221]
[1761356964865,0.81579936,3931.6,3931.5,0.78254221]
[1761356965070,0.81579936,3931.6,3931.5,0.92074221]
[1761356965269,0.81579936,3931.6,3931.5,0.78254221]
[1761356966471,0.81579936,3931.6,3931.5,0.56714221]
[1761356970273,0.23579936,3931.6,3931.5,0.92074221]
[1761356970673,0.81579936,3931.6,3931.5,0.92074221]
[1761356971275,0.46939936,3931.6,3931.5,0.92074221]
[1761356971776,0.81579936,3931.6,3931.5,0.92074221]
[1761356974176,1.73091998,3931.6,3931.5,0.92074221]
[1761356974972,0.81579936,3931.6,3931.5,0.92074221]
[1761356975174,1.73091998,3931.6,3931.5,0.92074221]
[1761356978180,0.81579936,3931.6,3931.5,0.92074221]
[1761356979180,2.19046806,3931.6,3931.5,0.92074221]
[1761356984885,0.81579936,3931.6,3931.5,0.92074221]
[1761356989289,0.00209936,3931.6,3931.5,0.92074221]
[1761356991491,1.37567771,3931.6,3931.5,0.92074221]
[1761356993278,1.58887771,3931.6,3931.5,0.92074221]
[1761356996189,1.37567771,3931.6,3931.5,0.92074221]
[1761356996990,1.58887771,3931.6,3931.5,0.92074221]
[1761356998294,1.93027771,3931.6,3931.5,0.92074221]
[1761356998592,2.16477771,3931.6,3931.5,0.92074221]
[1761357000398,1.82337771,3931.6,3931.5,0.92074221]
[1761357004194,2.16477771,3931.6,3931.5,0.92074221]
[1761357004988,0.79119936,3931.6,3931.5,0.78254221]
[1761357006890,0.79119936,3931.6,3931.5,0.33314221]
[1761357007094,2.61408806,3931.6,3931.5,0.00314221]
[1761357007703,2.61408806,3931.6,3931.5,0.32724221]
[1761357007902,2.61408806,3931.6,3931.5,0.55464221]
[1761357008103,0.79119936,3931.6,3931.5,0.55464221]
[1761357010607,2.61408806,3931.6,3931.5,0.55464221]
[1761357010901,2.61408806,3931.6,3931.5,0.00314221]
[1761357011204,2.61408806,3931.6,3931.5,0.32724221]
[1761357011406,2.61408806,3931.6,3931.5,0.55464221]
[1761357013103,2.61408806,3931.6,3931.5,0.32724221]
[1761357014908,2.16470648,3931.6,3931.5,0.32724221]
[1761357015303,11.10670648,3931.6,3931.5,0.00314221]
[1761357018504,11.10670648,3931.6,3931.5,0.55464221]
[1761357025018,9.73319936,3931.6,3931.5,0.55464221]
[1761357026615,9.73319936,3931.6,3931.5,0.76944221]
[1761357027217,9.73319936,3931.6,3931.5,0.89984221]
[1761357032321,9.73319936,3931.6,3931.5,0.55464221]
[1761357032522,9.73319936,3931.6,3931.5,0.00314221]
[1761357034428,11.10670648,3931.6,3931.5,0.00314221]
[1761357034832,9.73319936,3931.6,3931.5,0.00314221]
[1761357037635,0.78175,3930.9,3930.8,0.68142163]
[1761357037934,0.78175,3930.9,3930.6,1.26132143]
[1761357037935,0.7932,3930.7,3930.6,0.80808]
[1761357038133,0.7932,3930.7,3930.6,1.27248]
[1761357038328,9.85699635,3930.9,3930.8,0.45786]
[1761357038533,10.65019635,3930.9,3930.8,1.27246]
[1761357038726,10.65019635,3930.9,3930.8,1.27535324]
[1761357038928,10.65019635,3930.9,3930.8,0.00289324]
[1761357039232,9.7342,3930.9,3930.8,0.00289324]
[1761357041543,11.10799321,3930.9,3930.8,0.00289324]
[1761357042342,9.7342,3930.9,3930.8,0.00289324]
[1761357044333,10.64837269,3930.9,3930.8,0.00289324]
[1761357044641,9.7342,3930.9,3930.8,0.00289324]
[1761357045434,10.64825598,3930.9,3930.8,0.58249324]
[1761357045641,9.7342,3930.9,3930.8,0.58249324]
[1761357046243,10.64819265,3930.9,3930.8,0.58249324]
[1761357046543,10.64819265,3930.9,3930.8,0.81749324]
[1761357052038,10.64819265,3930.9,3930.8,0.58249324]
[1761357052549,10.64819265,3930.9,3930.8,0.35309324]
[1761357053346,9.7342,3930.9,3930.8,0.00289324]
[1761357062652,9.7342,3930.9,3930.8,0.33219324]
[1761357063351,10.64806138,3930.9,3930.8,0.33219324]
[1761357064248,10.64806138,3930.9,3930.8,0.54539324]
[1761357064552,9.7342,3930.9,3930.8,0.76009324]
[1761357065245,10.64806138,3930.9,3930.8,0.76009324]
[1761357067347,9.7342,3930.9,3930.8,0.76009324]
[1761357070755,9.1754,3930.9,3930.8,0.76009324]
[1761357072553,1.14608421,3931.1,3930.9,0.45785]
[1761357072756,10.08708421,3931.3,3931.2,0.212]
[1761357073056,9.1713,3931.3,3931.2,0.7521]
[1761357073656,9.7356,3931.3,3931.2,0.7521]
[1761357073862,9.7356,3931.3,3931.2,0.3279]
[1761357074956,10.65138421,3931.3,3931.2,0.3279]
[1761357078652,10.65138421,3931.3,3930.8,0.00289324]
[1761357078858,0.7946,3931.1,3931.0,0.5399]
[1761357080160,0.7946,3931.1,3931.0,0.8831]
[1761357091471,0.4564,3931.1,3931.0,0.8831]
[1761357092864,0.7946,3931.1,3931.0,0.8831]
[1761357095271,0.7946,3931.1,3931.0,0.7521]
[1761357095973,0.7946,3931.1,3931.0,0.3279]
[1761357096572,0.7946,3931.1,3931.0,0.5399]
[1761357101670,0.45783,3931.0,3930.9,0.68142163]
[1761357101874,0.45783,3931.0,3930.8,0.00289324]
[1761357101875,1.95691421,3931.0,3930.8,0.00289324]
[1761357102174,0.7758,3930.9,3930.8,0.00289324]
[1761357102373,1.69115305,3930.9,3930.8,0.00289324]
[1761357102575,0.7758,3930.9,3930.8,0.00289324]
[1761357103474,1.69081904,3930.9,3930.8,0.00289324]
[1761357106478,0.7758,3930.9,3930.8,0.00289324]
[1761357107080,0.7758,3930.9,3930.8,0.32619324]
[1761357107280,9.7148,3930.9,3930.8,0.00289324]
[1761357107481,9.7148,3930.9,3930.8,0.55149324]
[1761357108784,0.2227,3930.9,3930.8,0.77819324]
[1761357108983,8.939,3931.0,3930.8,0.91274324]
[1761357109282,8.939,3931.0,3930.9,0.7753]
[1761357110883,9.1617,3931.0,3930.9,0.7753]
[1761357111784,8.939,3931.0,3930.9,0.7753]
[1761357114282,0.45781,3931.2,3931.1,1.23311]
[1761357114283,0.4574,3931.2,3931.1,1.23311]
[1761357117389,0.2227,3931.2,3931.1,1.23311]
[1761357121085,1.01038,3931.5,3931.4,0.7975]
[1761357121486,1.22938,3931.5,3931.4,0.7975]
[1761357121892,0.7716,3931.5,3931.4,0.7975]
[1761357122686,0.4376,3931.5,3931.4,0.7975]
[1761357123899,0.7716,3931.5,3931.4,0.7975]
[1761357124894,2.14539321,3931.5,3931.4,0.7975]
[1761357125493,0.7716,3931.5,3931.4,0.7975]
[1761357125997,2.14539321,3931.5,3931.4,0.7975]
[1761357127300,0.7716,3931.5,3931.4,0.7975]
[1761357128710,2.14539321,3931.5,3931.4,0.7975]
[1761357129705,2.14539321,3931.5,3931.4,0.567]
[1761357134911,0.7716,3931.5,3931.4,0.567]
[1761357135306,1.68591119,3931.5,3931.4,0.567]
[1761357135504,0.7716,3931.5,3931.4,0.567]
[1761357135704,1.68591119,3931.5,3931.4,0.567]
[1761357137507,0.7716,3931.5,3931.4,0.567]
[1761357139410,0.7716,3931.5,3931.4,0.7902]
[1761357146812,0.7716,3931.5,3930.8,0.68488872]
[1761357146813,0.3398,3930.9,3930.8,0.68488872]
[1761357147019,10.65303209,3930.9,3930.8,0.00289324]
[1761357147208,9.7372,3930.9,3930.8,0.00289324]
[1761357147412,10.65250946,3930.9,3930.8,0.34739324]
[1761357149318,9.7372,3930.9,3930.8,0.34739324]
[1761357151227,9.7372,3930.9,3930.8,0.58259324]
[1761357172242,9.7372,3930.9,3930.8,0.00289324]
[1761357173342,10.65250946,3930.9,3930.8,0.00289324]
[1761357174939,11.11099321,3930.9,3930.8,0.00289324]
[1761357175444,9.7372,3930.9,3930.8,0.00289324]
[1761357181548,0.9092,3930.0,3929.9,3.5324]
[1761357182047,0.9092,3930.0,3929.9,0.3246]
[1761357182251,1.82469207,3930.0,3929.9,0.3246]
[1761357182451,1.82469207,3930.0,3929.9,0.32687362]
[1761357182951,1.69769207,3930.0,3929.9,0.77277362]
[1761357183152,0.91549207,3930.2,3930.0,0.45795]
[1761357183352,1.13919207,3930.3,3930.2,0.7705]
[1761357183557,0.5491,3930.3,3930.2,0.7705]
[1761357183952,0.7822,3930.3,3930.2,0.7705]
[1761357187062,0.7822,3930.3,3930.2,0.5581]
[1761357188258,0.7822,3930.3,3930.2,0.7705]
[1761357191662,0.4568,3930.3,3930.2,0.7705]
[1761357191859,8.937,3930.5,3930.4,0.7814]
[1761357192053,8.937,3930.5,3930.4,3.9892]
[1761357192461,0.7571,3930.8,3930.7,0.7814]
[1761357192863,0.435,3930.8,3930.7,0.7814]